fUSD/lending_fUSD_20250916
["ID","MTS","AMOUNT","RATE_DAILY","PERIOD"]
[385771591,1758030671993,-400.0,0.0003041,6]
[385771592,1758030672003,-400.0,0.0003041,6]
[385771593,1758030672013,-400.0,0.0003041,6]
[385771594,1758030672023,-403.47581398,0.0003041,6]
[385771595,1758030672033,-400.0,0.0003041,6]
[385771596,1758030672043,-400.0,0.0003041,6]
[385771597,1758030672053,-400.0,0.0003041,6]
[385771598,1758030672062,-400.0,0.0003041,6]
[385771599,1758030672071,-400.0,0.0003041,6]
[385771600,1758030672081,-493.07,0.0003041,6]
[385771601,1758030672093,-400.0,0.0003041,6]
[385771602,1758030672103,-400.0,0.0003041,6]
[385771603,1758030672113,-400.0,0.0003041,6]
[385771604,1758030672122,-400.0,0.0003041,6]
[385771605,1758030672132,-400.0,0.0003041,6]
[385771606,1758030672141,-400.0,0.0003041,6]
[385771607,1758030672151,-400.0,0.0003041,6]
[385771608,1758030672161,-400.0,0.0003041,6]
[385771609,1758030672171,-527.66,0.0003041,6]
[385771610,1758030672180,-400.0,0.0003041,6]
[385771611,1758030672190,-400.0,0.0003041,6]
[385771612,1758030672200,-400.0,0.0003041,6]
[385771613,1758030672210,-400.0,0.0003041,6]
[385771614,1758030672219,-447.66,0.0003041,6]
[385771615,1758030672229,-400.0,0.0003041,6]
[385771616,1758030672239,-400.0,0.0003041,6]
[385771617,1758030672248,-400.0,0.0003041,6]
[385771618,1758030672258,-404.49847285,0.0003041,6]
[385771619,1758030672268,-401.42362693,0.0003041,6]
[385771620,1758030672277,-400.0,0.0003041,6]
[385771621,1758030672288,-581.78,0.0003041,6]
[385771622,1758030672297,-400.0,0.0003041,6]
[385771623,1758030672306,-400.0,0.0003041,6]
[385771624,1758030672314,-400.0,0.0003041,6]
[385771625,1758030672324,-428.17,0.0003041,6]
[385771626,1758030672333,-402.20238331,0.0003041,6]
[385771627,1758030672345,-400.0,0.0003041,6]
[385771628,1758030672353,-400.0,0.0003041,6]
[385771629,1758030672362,-400.0,0.0003041,6]
[385771630,1758030672371,-400.0,0.0003041,6]
[385771631,1758030672381,-400.0,0.0003041,6]
[385771632,1758030672391,-400.0,0.0003041,6]
[385771633,1758030672401,-400.0,0.0003041,6]
[385771634,1758030672411,-400.0,0.0003041,6]
[385771635,1758030672420,-400.0,0.0003041,6]
[385771636,1758030672430,-599.49,0.0003041,6]
[385771637,1758030672439,-400.0,0.0003041,6]
[385771638,1758030672449,-400.0,0.0003041,6]
[385771639,1758030672459,-400.0,0.0003041,6]
[385771640,1758030672468,-602.03,0.0003041,6]
[385771641,1758030672478,-400.0,0.0003041,6]
[385771642,1758030672487,-400.0,0.0003041,6]
[385771643,1758030672497,-400.0,0.0003041,6]
[385771644,1758030672506,-1005.23518284,0.0003041,6]
[385771645,1758030672516,-400.0,0.0003041,6]
[385771646,1758030672526,-401.99032952,0.0003041,6]
[385771647,1758030672536,-400.0,0.0003041,6]
[385771648,1758030672545,-400.0,0.0003041,6]
[385771649,1758030672555,-400.0,0.0003041,6]
[385771650,1758030672564,-400.0,0.0003041,6]
[385771651,1758030672574,-400.0,0.0003041,6]
[385771652,1758030672583,-438.16,0.0003041,6]
[385771653,1758030672595,-400.0,0.0003041,6]
[385771654,1758030672604,-694.36,0.0003041,6]
[385771655,1758030672614,-400.0,0.0003041,6]
[385771656,1758030672623,-400.0,0.0003041,6]
[385771657,1758030672632,-400.0,0.0003041,6]
[385771658,1758030672642,-400.0,0.0003041,6]
[385771659,1758030672651,-400.0,0.0003041,6]
[385771660,1758030672660,-400.0,0.0003041,6]
[385771661,1758030672670,-400.0,0.0003041,6]
[385771662,1758030672679,-400.0,0.0003041,6]
[385771663,1758030672689,-400.0,0.0003041,6]
[385771664,1758030672698,-400.0,0.0003041,6]
[385771665,1758030672707,-162.02513918,0.0003041,6]
[385771666,1758030672716,-400.0,0.0003041,6]
[385771667,1758030672726,-400.0,0.0003041,6]
[385771668,1758030672735,-400.0,0.0003041,6]
[385771669,1758030672745,-400.0,0.0003041,6]
[385771670,1758030672754,-400.0,0.0003041,6]
[385771671,1758030672763,-400.0,0.0003041,6]
[385771672,1758030672773,-670.41,0.0003041,6]
[385771673,1758030672783,-400.0,0.0003041,6]
[385771674,1758030672792,-400.0,0.0003041,6]
[385771675,1758030672802,-400.0,0.0003041,6]
[385771676,1758030672811,-400.0,0.0003041,6]
[385771677,1758030672822,-400.0,0.0003041,6]
[385771678,1758030672832,-491.97,0.0003041,6]
[385771679,1758030672845,-400.0,0.0003041,6]
[385771680,1758030672854,-400.0,0.0003041,6]
[385771681,1758030672863,-400.0,0.0003041,6]
[385771682,1758030672872,-478.5,0.0003041,6]
[385771683,1758030672881,-400.0,0.0003041,6]
[385771684,1758030672890,-400.0,0.0003041,6]
[385771685,1758030672902,-400.0,0.0003041,6]
[385771686,1758030672911,-400.0,0.0003041,6]
[385771687,1758030672924,-400.0,0.0003041,6]
[385771688,1758030672934,-402.00850005,0.0003041,6]
[385771689,1758030672944,-400.0,0.0003041,6]
[385771690,1758030672953,-538.11,0.0003041,6]
[385771691,1758030672963,-559.64,0.0003041,6]
[385771692,1758030672972,-919.47,0.0003041,6]
[385771693,1758030672982,-401.04353891,0.0003041,6]
[385771694,1758030672992,-400.0,0.0003041,6]
[385771695,1758030673002,-400.0,0.0003041,6]
[385771696,1758030673011,-400.0,0.0003041,6]
[385771697,1758030673021,-400.0,0.0003041,6]
[385771698,1758030673031,-400.0,0.0003041,6]
[385771699,1758030673040,-400.0,0.0003041,6]
[385771700,1758030673049,-400.0,0.0003041,6]
[385771701,1758030673059,-542.3878559,0.0003041,6]
[385771702,1758030673068,-400.0,0.0003041,6]
[385771703,1758030673077,-400.0,0.0003041,6]
[385771704,1758030673088,-668.97,0.0003041,6]
[385771705,1758030673099,-519.85,0.0003041,6]
[385771706,1758030673108,-400.0,0.0003041,6]
[385771707,1758030673117,-400.0,0.0003041,6]
[385771708,1758030673126,-400.0,0.0003041,6]
[385771709,1758030673136,-400.0,0.0003041,6]
[385771710,1758030673145,-400.0,0.0003041,6]
[385771711,1758030673155,-570.1,0.0003041,6]
[385771712,1758030673163,-400.0,0.0003041,6]
[385771713,1758030673173,-400.0,0.0003041,6]
[385771714,1758030673182,-409.8,0.0003041,6]
[385771715,1758030673191,-472.44794431,0.0003041,6]
[385771716,1758030673201,-400.0,0.0003041,6]
[385771717,1758030673210,-400.0,0.0003041,6]
[385771718,1758030673219,-400.0,0.0003041,6]
[385771719,1758030673228,-400.0,0.0003041,6]
[385771720,1758030673238,-409.62614682,0.0003041,6]
[385771721,1758030673247,-400.0,0.0003041,6]
[385771722,1758030673256,-400.0,0.0003041,6]
[385771723,1758030673265,-400.0,0.0003041,6]
[385771724,1758030673275,-400.0,0.0003041,6]
[385771725,1758030673284,-400.0,0.0003041,6]
[385771726,1758030673293,-524.44,0.0003041,6]
[385771727,1758030673302,-400.0,0.0003041,6]
[385771728,1758030673312,-400.0,0.0003041,6]
[385771729,1758030673321,-576.52,0.0003041,6]
[385771730,1758030673330,-400.0,0.0003041,6]
[385771731,1758030673340,-400.0,0.0003041,6]
[385771732,1758030673350,-577.99,0.0003041,6]
[385771733,1758030673359,-400.0,0.0003041,6]
[385771734,1758030673368,-400.0,0.0003041,6]
[385771735,1758030673377,-400.0,0.0003041,6]
[385771736,1758030673386,-400.0,0.0003041,6]
[385771737,1758030673396,-400.0,0.0003041,6]
[385771738,1758030673406,-400.0,0.0003041,6]
[385771739,1758030673415,-401.41712629,0.0003041,6]
[385771740,1758030673424,-400.0,0.0003041,6]
[385771741,1758030673434,-400.0,0.0003041,6]
[385771742,1758030673443,-400.0,0.0003041,6]
[385771743,1758030673453,-400.0,0.0003041,6]
[385771744,1758030673462,-400.0,0.0003041,6]
[385771745,1758030673471,-638.76,0.0003041,6]
[385771746,1758030673481,-400.0,0.0003041,6]
[385771747,1758030673490,-841.75,0.0003041,6]
[385771748,1758030673499,-780.88,0.0003041,6]
[385771749,1758030673510,-400.0,0.0003041,6]
[385771750,1758030673519,-684.32,0.0003041,6]
[385771751,1758030673529,-422.77,0.0003041,6]
[385771752,1758030673538,-400.0,0.0003041,6]
[385771753,1758030673548,-400.0,0.0003041,6]
[385771754,1758030673558,-400.0,0.0003041,6]
[385771755,1758030673567,-400.0,0.0003041,6]
[385771756,1758030673577,-400.0,0.0003041,6]
[385771757,1758030673586,-400.0,0.0003041,6]
[385771758,1758030673597,-486.8,0.0003041,6]
[385771759,1758030673607,-400.0,0.0003041,6]
[385771760,1758030673616,-400.0,0.0003041,6]
[385771761,1758030673626,-464.21,0.0003041,6]
[385771762,1758030673636,-400.0,0.0003041,6]
[385771763,1758030673719,-401.82601991,0.0003041,6]
[385771764,1758030673730,-400.0,0.0003041,6]
[385771765,1758030673740,-400.0,0.0003041,6]
[385771766,1758030673750,-400.0,0.0003041,6]
[385771767,1758030673759,-498.09915212,0.0003041,6]
[385771768,1758030673768,-400.0,0.0003041,6]
[385771769,1758030673777,-401.37985187,0.0003041,6]
[385771770,1758030673787,-400.0,0.0003041,6]
[385771771,1758030673796,-400.0,0.0003041,6]
[385771772,1758030673806,-400.0,0.0003041,6]
[385771773,1758030673816,-400.0,0.0003041,6]
[385771774,1758030673825,-294.11836822,0.0003041,6]
[385771775,1758030673835,-476.54,0.0003041,6]
[385771776,1758030673848,-400.0,0.0003041,6]
[385771777,1758030673858,-400.0,0.0003041,6]
[385771778,1758030673867,-455.66,0.0003041,6]
[385771779,1758030673876,-830.89,0.0003041,6]
[385771780,1758030673886,-550.51,0.0003041,6]
[385771781,1758030673895,-402.60353317,0.0003041,6]
[385771782,1758030673905,-400.0,0.0003041,6]
[385771783,1758030673917,-640.4,0.0003041,6]
[385771784,1758030673927,-626.75,0.0003041,6]
[385771785,1758030673936,-400.0,0.0003041,6]
[385771786,1758030673946,-408.29448047,0.0003041,6]
[385771787,1758030673955,-400.0,0.0003041,6]
[385771788,1758030673964,-400.0,0.0003041,6]
[385771789,1758030673973,-821.61,0.0003041,6]
[385771790,1758030673983,-400.0,0.0003041,6]
[385771791,1758030673992,-400.0,0.0003041,6]
[385771792,1758030674002,-400.0,0.0003041,6]
[385771793,1758030674011,-401.14601405,0.0003041,6]
[385771794,1758030674020,-400.0,0.0003041,6]
[385771795,1758030674030,-400.77661231,0.0003041,6]
[385771796,1758030674039,-400.0,0.0003041,6]
[385771797,1758030674049,-400.0,0.0003041,6]
[385771798,1758030674058,-400.0,0.0003041,6]
[385771799,1758030674068,-520.39,0.0003041,6]
[385771800,1758030674077,-401.9777863,0.0003041,6]
[385771801,1758030674087,-400.0,0.0003041,6]
[385771802,1758030674101,-720.82,0.0003041,6]
[385771803,1758030674111,-640.02,0.0003041,6]
[385771804,1758030674120,-400.0,0.0003041,6]
[385771805,1758030674130,-400.0,0.0003041,6]
[385771806,1758030674139,-400.0,0.0003041,6]
[385771807,1758030674149,-400.0,0.0003041,6]
[385771808,1758030674159,-400.0,0.0003041,6]
[385771809,1758030674169,-540.69,0.0003041,6]
[385771810,1758030674178,-403.6202476,0.0003041,6]
[385771811,1758030674188,-400.0,0.0003041,6]
[385771812,1758030674197,-400.0,0.0003041,6]
[385771813,1758030674208,-400.0,0.0003041,6]
[385771814,1758030674217,-498.26,0.0003041,6]
[385771815,1758030674227,-325.18507946,0.0003041,6]
[385771816,1758030674236,-400.0,0.0003041,6]
[385771817,1758030674246,-492.28,0.0003041,6]
[385771818,1758030674255,-400.0,0.0003041,6]
[385771819,1758030674264,-400.0,0.0003041,6]
[385771820,1758030674275,-685.7,0.0003041,6]
[385771821,1758030674284,-400.0,0.0003041,6]
[385771822,1758030674294,-400.0,0.0003041,6]
[385771823,1758030674303,-400.0,0.0003041,6]
[385771824,1758030674313,-479.18,0.0003041,6]
[385771825,1758030674322,-400.0,0.0003041,6]
[385771826,1758030674332,-627.94,0.0003041,6]
[385771827,1758030674343,-400.0,0.0003041,6]
[385771828,1758030674352,-400.0,0.0003041,6]
[385771829,1758030674362,-400.0,0.0003041,6]
[385771830,1758030674376,-400.0,0.0003041,6]
[385771831,1758030674385,-400.0,0.0003041,6]
[385771832,1758030674395,-400.0,0.0003041,6]
[385771833,1758030674406,-400.0,0.0003041,6]
[385771834,1758030674424,-400.0,0.0003041,6]
[385771835,1758030674434,-1172.0,0.0003041,6]
[385771836,1758030674444,-567.99,0.0003041,6]
[385771837,1758030674454,-400.0,0.0003041,6]
[385771838,1758030674464,-702.98,0.0003041,6]
[385771839,1758030674474,-400.0,0.0003041,6]
[385771840,1758030674484,-405.52486531,0.0003041,6]
[385771841,1758030674494,-520.82,0.0003041,6]
[385771842,1758030674504,-400.0,0.0003041,6]
[385771843,1758030674514,-400.0,0.0003041,6]
[385771844,1758030674524,-400.0,0.0003041,6]
[385771845,1758030674534,-400.0,0.0003041,6]
[385771846,1758030674544,-292.20457825,0.0003041,6]
[385771847,1758030674554,-400.0,0.0003041,6]
[385771848,1758030674564,-508.06,0.0003041,6]
[385771849,1758030674574,-869.12,0.0003041,6]
[385771850,1758030674583,-400.0,0.0003041,6]
[385771851,1758030674593,-400.0,0.0003041,6]
[385771852,1758030674603,-400.0,0.0003041,6]
[385771853,1758030674613,-411.22462894,0.0003041,6]
[385771854,1758030674622,-497.39,0.0003041,6]
[385771855,1758030674632,-400.0,0.0003041,6]
[385771856,1758030674642,-400.0,0.0003041,6]
[385771857,1758030674651,-400.0,0.0003041,6]
[385771858,1758030674661,-1158.73,0.0003041,6]
[385771859,1758030674671,-759.52,0.0003041,6]
[385771860,1758030674682,-722.61,0.0003041,6]
[385771861,1758030674692,-400.0,0.0003041,6]
[385771862,1758030674702,-400.0,0.0003041,6]
[385771863,1758030674713,-400.0,0.0003041,6]
[385771864,1758030674723,-633.25,0.0003041,6]
[385771865,1758030674733,-597.83,0.0003041,6]
[385771866,1758030674743,-400.0,0.0003041,6]
[385771867,1758030674752,-397.65596221,0.0003041,6]
[385771868,1758030674762,-400.0,0.0003041,6]
[385771869,1758030674774,-400.0,0.0003041,6]
[385771870,1758030674784,-575.67,0.0003041,6]
[385771871,1758030674794,-402.23290278,0.0003041,6]
[385771872,1758030674804,-400.0,0.0003041,6]
[385771873,1758030674814,-400.0,0.0003041,6]
[385771874,1758030674824,-400.0,0.0003041,6]
[385771875,1758030674834,-400.0,0.0003041,6]
[385771876,1758030674846,-400.0,0.0003041,6]
[385771877,1758030674855,-898.12,0.0003041,6]
[385771878,1758030674864,-502.07418249,0.0003041,6]
[385771879,1758030674873,-527.33,0.0003041,6]
[385771880,1758030674883,-400.0,0.0003041,6]
[385771881,1758030674893,-400.0,0.0003041,6]
[385771882,1758030674903,-448.62,0.0003041,6]
[385771883,1758030674915,-400.0,0.0003041,6]
[385771884,1758030674925,-400.0,0.0003041,6]
[385771885,1758030674934,-400.0,0.0003041,6]
[385771886,1758030674944,-405.78588919,0.0003041,6]
[385771887,1758030674954,-400.0,0.0003041,6]
[385771888,1758030674965,-400.0,0.0003041,6]
[385771889,1758030674975,-412.53518901,0.0003041,6]
[385771890,1758030674985,-400.0,0.0003041,6]
[385771891,1758030674995,-400.0,0.0003041,6]
[385771892,1758030675006,-400.0,0.0003041,6]
[385771893,1758030675016,-400.0,0.0003041,6]
[385771894,1758030675026,-407.60739017,0.0003041,6]
[385771895,1758030675036,-400.0,0.0003041,6]
[385771896,1758030675045,-748.16,0.0003041,6]
[385771897,1758030675055,-400.0,0.0003041,6]
[385771898,1758030675064,-400.0,0.0003041,6]
[385771899,1758030675075,-400.0,0.0003041,6]
[385771900,1758030675084,-530.99,0.0003041,6]
[385771901,1758030675096,-400.0,0.0003041,6]
[385771902,1758030675106,-750.04,0.0003041,6]
[385771903,1758030675115,-400.0,0.0003041,6]
[385771904,1758030675125,-400.0,0.0003041,6]
[385771905,1758030675135,-400.0,0.0003041,6]
[385771906,1758030675145,-400.0,0.0003041,6]
[385771907,1758030675155,-175.95263933,0.0003041,6]
[385771908,1758030675165,-400.0,0.0003041,6]
[385771909,1758030675176,-400.0,0.0003041,6]
[385771910,1758030675188,-400.0,0.0003041,6]
[385771911,1758030675198,-400.0,0.0003041,6]
[385771912,1758030675208,-737.24,0.0003041,6]
[385771913,1758030675219,-614.84,0.0003041,6]
[385771914,1758030675228,-2282.11,0.0003041,6]
[385771915,1758030675238,-600.77,0.0003041,6]
[385771916,1758030675248,-400.0,0.0003041,6]
[385771917,1758030675258,-400.0,0.0003041,6]
[385771918,1758030675267,-400.0,0.0003041,6]
[385771919,1758030675277,-400.0,0.0003041,6]
[385771920,1758030675286,-400.0,0.0003041,6]
[385771921,1758030675296,-400.0,0.0003041,6]
[385771922,1758030675306,-400.0,0.0003041,6]
[385771923,1758030675315,-515.22,0.0003041,6]
[385771924,1758030675325,-400.0,0.0003041,6]
[385771925,1758030675335,-400.0,0.0003041,6]
[385771926,1758030675346,-400.0,0.0003041,6]
[385771927,1758030675355,-400.0,0.0003041,6]
[385771928,1758030675365,-400.0,0.0003041,6]
[385771929,1758030675375,-400.0,0.0003041,6]
[385771930,1758030675384,-400.0,0.0003041,6]
[385771931,1758030675395,-400.0,0.0003041,6]
[385771932,1758030675405,-400.0,0.0003041,6]
[385771933,1758030675414,-400.0,0.0003041,6]
[385771934,1758030675424,-593.79,0.0003041,6]
[385771935,1758030675434,-400.0,0.0003041,6]
[385771936,1758030675444,-400.0,0.0003041,6]
[385771937,1758030675453,-402.89856406,0.0003041,6]
[385771938,1758030675463,-2951.48,0.0003041,6]
[385771939,1758030675473,-400.0,0.0003041,6]
[385771940,1758030675483,-400.0,0.0003041,6]
[385771941,1758030675492,-400.0,0.0003041,6]
[385771942,1758030675502,-815.15,0.0003041,6]
[385771943,1758030675511,-402.84107086,0.0003041,6]
[385771944,1758030675521,-416.62107922,0.0003041,6]
[385771945,1758030675530,-400.0,0.0003041,6]
[385771946,1758030675540,-400.0,0.0003041,6]
[385771947,1758030675550,-400.0,0.0003041,6]
[385771948,1758030675560,-400.0,0.0003041,6]
[385771949,1758030675569,-400.0,0.0003041,6]
[385771950,1758030675579,-1462.29,0.0003041,6]
[385771951,1758030675589,-400.0,0.0003041,6]
[385771952,1758030675601,-400.0,0.0003041,6]
[385771953,1758030675611,-1048.6,0.0003041,6]
[385771954,1758030675621,-400.0,0.0003041,6]
[385771955,1758030675631,-400.0,0.0003041,6]
[385771956,1758030675641,-400.0,0.0003041,6]
[385771957,1758030675651,-405.70445466,0.0003041,6]
[385771958,1758030675661,-400.0,0.0003041,6]
[385771959,1758030675671,-400.0,0.0003041,6]
[385771960,1758030675681,-400.0,0.0003041,6]
[385771961,1758030675692,-601.67,0.0003041,6]
[385771962,1758030675702,-607.59,0.0003041,6]
[385771963,1758030675712,-764.89,0.0003041,6]
[385771964,1758030675722,-400.0,0.0003041,6]
[385771965,1758030675732,-770.51,0.0003041,6]
[385771966,1758030675743,-400.0,0.0003041,6]
[385771967,1758030675753,-400.0,0.0003041,6]
[385771968,1758030675763,-400.0,0.0003041,6]
[385771969,1758030675773,-400.94253373,0.0003041,6]
[385771970,1758030675783,-400.0,0.0003041,6]
[385771971,1758030675793,-400.0,0.0003041,6]
[385771972,1758030675804,-775.81,0.0003041,6]
[385771973,1758030675813,-406.45754509,0.0003041,6]
[385771974,1758030675824,-400.0,0.0003041,6]
[385771975,1758030675834,-400.0,0.0003041,6]
[385771976,1758030675845,-400.0,0.0003041,6]
[385771977,1758030675855,-512.69,0.0003041,6]
[385771978,1758030675865,-400.0,0.0003041,6]
[385771979,1758030675876,-602.4,0.0003041,6]
[385771980,1758030675886,-400.0,0.0003041,6]
[385771981,1758030675896,-371.04712832,0.0003041,6]
[385771982,1758030675909,-400.0,0.0003041,6]
[385771983,1758030675919,-2355.88,0.0003041,6]
[385771984,1758030675929,-867.75,0.0003041,6]
[385771985,1758030675939,-400.0,0.0003041,6]
[385771986,1758030675950,-400.0,0.0003041,6]
[385771987,1758030675960,-400.0,0.0003041,6]
[385771988,1758030675970,-539.87,0.0003041,6]
[385771989,1758030675980,-400.0,0.0003041,6]
[385771990,1758030675991,-400.0,0.0003041,6]
[385771991,1758030676001,-405.24790801,0.0003041,6]
[385771992,1758030676011,-400.0,0.0003041,6]
[385771993,1758030676021,-400.0,0.0003041,6]
[385771994,1758030676031,-400.0,0.0003041,6]
[385771995,1758030676040,-400.0,0.0003041,6]
[385771996,1758030676050,-400.0,0.0003041,6]
[385771997,1758030676060,-729.39,0.0003041,6]
[385771998,1758030676069,-400.0,0.0003041,6]
[385771999,1758030676078,-421.87,0.0003041,6]
[385772000,1758030676088,-520.87,0.0003041,6]
[385772001,1758030676099,-400.0,0.0003041,6]
[385772002,1758030676112,-400.0,0.0003041,6]
[385772003,1758030676121,-612.42,0.0003041,6]
[385772004,1758030676131,-619.42,0.0003041,6]
[385772005,1758030676140,-400.0,0.0003041,6]
[385772006,1758030676150,-561.05,0.0003041,6]
[385772007,1758030676160,-400.0,0.0003041,6]
[385772008,1758030676170,-438.96632617,0.0003041,6]
[385772009,1758030676180,-400.0,0.0003041,6]
[385772010,1758030676189,-557.5,0.0003041,6]
[385772011,1758030676199,-400.0,0.0003041,6]
[385772012,1758030676208,-434.03888583,0.0003041,6]
[385772013,1758030676218,-1338.22,0.0003041,6]
[385772014,1758030676228,-400.0,0.0003041,6]
[385772015,1758030676237,-400.0,0.0003041,6]
[385772016,1758030676247,-452.41592779,0.0003041,6]
[385772017,1758030676256,-719.17,0.0003041,6]
[385772018,1758030676265,-494.57,0.0003041,6]
[385772019,1758030676275,-400.0,0.0003041,6]
[385772020,1758030676284,-400.0,0.0003041,6]
[385772021,1758030676294,-401.37664728,0.0003041,6]
[385772022,1758030676303,-1260.05,0.0003041,6]
[385772023,1758030676313,-400.0,0.0003041,6]
[385772024,1758030676323,-403.63564564,0.0003041,6]
[385772025,1758030676494,-529.87,0.0003041,6]
[385772026,1758030676507,-400.0,0.0003041,6]
[385772027,1758030676517,-400.0,0.0003041,6]
[385772028,1758030676526,-3589.84,0.0003041,6]
[385772029,1758030676535,-1349.21,0.0003041,6]
[385772030,1758030676545,-400.0,0.0003041,6]
[385772031,1758030676555,-400.0,0.0003041,6]
[385772032,1758030676564,-402.98891419,0.0003041,6]
[385772033,1758030676573,-400.0,0.0003041,6]
[385772034,1758030676582,-553.11,0.0003041,6]
[385772035,1758030676592,-400.0,0.0003041,6]
[385772036,1758030676604,-400.0,0.0003041,6]
[385772037,1758030676613,-400.0,0.0003041,6]
[385772038,1758030676623,-2742.4,0.0003041,6]
[385772039,1758030676632,-404.57958567,0.0003041,6]
[385772040,1758030676641,-400.0,0.0003041,6]
[385772041,1758030676649,-400.0,0.0003041,6]
[385772042,1758030676658,-731.31,0.0003041,6]
[385772043,1758030676666,-400.0,0.0003041,6]
[385772044,1758030676675,-400.0,0.0003041,6]
[385772045,1758030676683,-400.0,0.0003041,6]
[385772046,1758030676691,-400.0,0.0003041,6]
[385772047,1758030676699,-400.0,0.0003041,6]
[385772048,1758030676707,-400.0,0.0003041,6]
[385772049,1758030676715,-594.55,0.0003041,6]
[385772050,1758030676723,-400.0,0.0003041,6]
[385772051,1758030676733,-400.0,0.0003041,6]
[385772052,1758030676742,-400.0,0.0003041,6]
[385772053,1758030676751,-400.0,0.0003041,6]
[385772054,1758030676761,-1768.66,0.0003041,6]
[385772055,1758030676770,-400.0,0.0003041,6]
[385772056,1758030676780,-4088.73,0.0003041,6]
[385772057,1758030676790,-400.0,0.0003041,6]
[385772058,1758030676799,-400.0,0.0003041,6]
[385772059,1758030676810,-400.0,0.0003041,6]
[385772060,1758030676820,-669.48,0.0003041,6]
[385772061,1758030676830,-400.0,0.0003041,6]
[385772062,1758030676840,-526.47,0.0003041,6]
[385772063,1758030676851,-400.0,0.0003041,6]
[385772064,1758030676860,-400.0,0.0003041,6]
[385772065,1758030676870,-1018.02,0.0003041,6]
[385772066,1758030676879,-400.0,0.0003041,6]
[385772067,1758030676888,-400.0,0.0003041,6]
[385772068,1758030676898,-400.0,0.0003041,6]
[385772069,1758030676911,-400.0,0.0003041,6]
[385772070,1758030676921,-400.62548944,0.0003041,6]
[385772071,1758030676930,-400.0,0.0003041,6]
[385772072,1758030676940,-400.0,0.0003041,6]
[385772073,1758030676950,-1194.2,0.0003041,6]
[385772074,1758030676959,-400.0,0.0003041,6]
[385772075,1758030676969,-277.09704768,0.0003041,6]
[385772076,1758030676978,-400.0,0.0003041,6]
[385772077,1758030676989,-420.22,0.0003041,6]
[385772078,1758030677000,-400.0,0.0003041,6]
[385772079,1758030677010,-400.0,0.0003041,6]
[385772080,1758030677019,-400.0,0.0003041,6]
[385772081,1758030677029,-400.0,0.0003041,6]
[385772082,1758030677038,-400.0,0.0003041,6]
[385772083,1758030677048,-400.0,0.0003041,6]
[385772084,1758030677058,-750.22,0.0003041,6]
[385772085,1758030677068,-4951.42,0.0003041,6]
[385772086,1758030677078,-818.06,0.0003041,6]
[385772087,1758030677088,-400.0,0.0003041,6]
[385772088,1758030677098,-400.0,0.0003041,6]
[385772089,1758030677107,-622.64,0.0003041,6]
[385772090,1758030677117,-400.0,0.0003041,6]